fUST/lending_fUST_20250504
["ID","MTS","AMOUNT","RATE_DAILY","PERIOD"]
[359787831,1746348663023,-306.60933036,0.00036986,30]
[359787832,1746348663034,-500.0,0.00036986,30]
[359787833,1746348663044,-564.22327559,0.00036986,30]
[359787834,1746348663054,-1000.0,0.00037029,5]
[359787835,1746348663064,-160.0,0.000372,53]
[359787836,1746348663074,-800.0,0.00037249,60]
[359787837,1746348663084,-157.65859744,0.0003726,30]
[359787838,1746348663094,-154.21796381,0.0003726,30]
[359787839,1746348663105,-500.0,0.0003726,30]
[359787840,1746348663115,-500.0,0.0003726,30]
[359787841,1746348663124,-1605.216419,0.0003728,11]
[359787842,1746348663135,-1000.0,0.00037297,120]
[359787843,1746348663145,-151.0,0.00037297,7]
[359787844,1746348663156,-159.09815816,0.00037297,7]
[359787845,1746348663166,-207.4,0.00037297,7]
[359787846,1746348663175,-215.0738,0.00037297,7]
[359787847,1746348663185,-223.0315306,0.00037297,7]
[359787848,1746348663195,-231.28369723,0.00037297,7]
[359787849,1746348663204,-250.77912914,0.00037297,7]
[359787850,1746348663214,-171.05401742,0.00037298,7]
[359787851,1746348663224,-151.0,0.00037298,2]
[359787852,1746348663234,-210.68275247,0.00037298,2]
[359787853,1746348663243,-10263.53,0.000373,30]
[359787854,1746348663252,-36278.52,0.000373,30]
[359787855,1746348663262,-1000.0,0.000373,11]
[359787856,1746348663273,-294.435758,0.000373,14]
[359787857,1746348663283,-294.435758,0.000373,14]
[359787858,1746348663293,-151.0,0.00037308,14]
[359787859,1746348663302,-693.55,0.00037308,67]
[359787860,1746348663313,-4458.77,0.0003732,7]
[359787861,1746348663322,-4458.77,0.0003732,7]
[359787862,1746348663333,-4458.77,0.0003732,7]
[359787863,1746348663344,-4458.77,0.0003732,7]
[359787864,1746348663354,-4458.77,0.0003732,7]
[359787865,1746348663365,-4458.77,0.0003732,7]
[359787866,1746348663376,-4458.77,0.0003732,7]
[359787867,1746348663386,-4458.77,0.0003732,7]
[359787868,1746348663396,-4458.77,0.0003732,7]
[359787869,1746348663407,-4458.77,0.0003732,7]
[359787870,1746348663418,-4458.77,0.0003732,7]
[359787871,1746348663428,-4458.77,0.0003732,7]
[359787872,1746348663438,-4458.77,0.0003732,7]
[359787873,1746348663448,-4458.77,0.0003732,7]
[359787874,1746348663458,-4458.77,0.0003732,7]
[359787875,1746348663468,-4458.77,0.0003732,7]
[359787876,1746348663479,-4458.77,0.0003732,7]
[359787877,1746348663490,-4458.77,0.0003732,7]
[359787878,1746348663499,-4458.77,0.0003732,7]
[359787879,1746348663508,-4458.77,0.0003732,7]
[359787880,1746348663518,-4458.77,0.0003732,7]
[359787881,1746348663528,-4458.77,0.0003732,7]
[359787882,1746348663538,-4459.00565902,0.0003732,7]
[359787883,1746348663548,-160.0,0.0003732,7]
[359787884,1746348663558,-1000.0,0.0003732,11]
[359787885,1746348663567,-160.0,0.0003732,7]
[359787886,1746348663577,-625.76345959,0.0003732,7]
[359787887,1746348663587,-794.284817,0.0003732,14]
[359787888,1746348663597,-794.284817,0.0003732,14]
[359787889,1746348663607,-151.0,0.0003732,2]
[359787890,1746348663618,-160.0,0.0003732,7]
[359787891,1746348663627,-160.0,0.0003732,7]
[359787892,1746348663638,-1177.32,0.00037325,30]
[359787893,1746348663647,-1000.0,0.0003733,5]
[359787894,1746348663657,-1394.783581,0.0003734,11]
[359787895,1746348663667,-1000.0,0.0003734,11]
[359787896,1746348663676,-160.0,0.0003736,8]
[359787897,1746348663685,-151.0,0.0003736,14]
[359787898,1746348663695,-1000.0,0.0003736,11]
[359787899,1746348663706,-1000.0,0.0003736,11]
[359787900,1746348663716,-294.435758,0.0003736,14]
[359787901,1746348663727,-294.435758,0.0003736,14]
[359787902,1746348663737,-502.43733104,0.00037373,5]
[359787903,1746348663747,-341.41425466,0.00037373,5]
[359787904,1746348663756,-445.63800235,0.00037373,5]
[359787905,1746348663767,-500.0,0.00037373,5]
[359787906,1746348663776,-500.0,0.00037373,5]
[359787907,1746348663786,-500.0,0.00037373,5]
[359787908,1746348663796,-502.35478037,0.00037373,5]
[359787909,1746348663806,-500.98382815,0.00037373,5]
[359787910,1746348663815,-500.0,0.00037373,5]
[359787911,1746348663896,-151.0,0.0003738,14]
[359787912,1746348663906,-1000.0,0.0003738,11]
[359787913,1746348663916,-1000.0,0.0003738,11]
[359787914,1746348663926,-1000.0,0.000374,11]
[359787915,1746348663937,-1000.0,0.000374,11]
[359787916,1746348663946,-1000.0,0.0003742,11]
[359787917,1746348663956,-1000.0,0.0003742,11]
[359787918,1746348663966,-1000.0,0.0003744,11]
[359787919,1746348663976,-1000.0,0.0003744,11]
[359787920,1746348663986,-693.55,0.00037458,40]
[359787921,1746348663996,-1000.0,0.0003746,11]
[359787922,1746348664007,-1000.0,0.0003746,11]
[359787923,1746348664017,-1000.0,0.0003748,11]
[359787924,1746348664027,-1000.0,0.0003748,11]
[359787925,1746348664037,-1100.869403,0.0003748,11]
[359787926,1746348664047,-1000.0,0.000375,11]
[359787927,1746348664058,-1000.0,0.000375,11]
[359787928,1746348664068,-1000.0,0.000375,11]
[359787929,1746348664079,-500.0,0.00037534,30]
[359787930,1746348664089,-500.0,0.00037534,30]
[359787931,1746348664099,-4262.739,0.00037556,7]
[359787932,1746348664109,-200.0,0.00037563,120]
[359787933,1746348664119,-794.284817,0.00037608,14]
[359787934,1746348664130,-794.284815,0.00037608,14]
[359787935,1746348664140,-693.55,0.00037608,75]
[359787936,1746348664150,-200.0,0.00037681,120]
[359787937,1746348664160,-600.0,0.00037686,2]
[359787938,1746348664170,-693.55,0.00037758,40]
[359787939,1746348664180,-800.0,0.00037797,60]
[359787940,1746348664191,-1008.62962165,0.000378,2]
[359787941,1746348664200,-1728.96,0.000378,7]
[359787942,1746348664212,-158.80322287,0.00037808,30]
[359787943,1746348664222,-505.57387268,0.00037808,30]
[359787944,1746348664232,-160.0,0.00037808,8]
[359787945,1746348664241,-1000.0,0.00037852,2]
[359787946,1746348664251,-153.874,0.00037857,5]
[359787947,1746348664260,-693.55,0.00037908,48]
[359787948,1746348664270,-20467.00129542,0.0003799,2]
[359787949,1746348664280,-316.0,0.00038,120]
[359787950,1746348664291,-230.0,0.00038,10]
[359787951,1746348664301,-400.0,0.00038,14]
[359787952,1746348664311,-3244.0,0.00038,2]
[359787953,1746348664321,-545.0,0.00038035,2]
[359787954,1746348664331,-2243.0,0.00038035,2]
[359787955,1746348664341,-707.0,0.00038035,2]
[359787956,1746348664351,-151.0,0.00038058,2]
[359787957,1746348664361,-693.55,0.00038058,33]
[359787958,1746348664371,-600.0,0.00038078,2]
[359787959,1746348664380,-200.0,0.000382,120]
[359787960,1746348664390,-269.9,0.000382,56]
[359787961,1746348664400,-693.55,0.00038208,87]
[359787962,1746348664410,-200.0,0.00038272,120]
[359787963,1746348664421,-160.0,0.00038305,9]
[359787964,1746348664431,-800.0,0.00038345,60]
[359787965,1746348664442,-7042.45523406,0.00038356,30]
[359787966,1746348664452,-300.0,0.00038356,30]
[359787967,1746348664462,-300.0,0.00038356,30]
[359787968,1746348664473,-300.0,0.00038356,30]
[359787969,1746348664482,-300.0,0.00038356,30]
[359787970,1746348664492,-300.0,0.00038356,30]
[359787971,1746348664502,-300.0,0.00038356,30]
[359787972,1746348664512,-300.0,0.00038356,30]
[359787973,1746348664522,-300.0,0.00038356,30]
[359787974,1746348664532,-300.0,0.00038356,30]
[359787975,1746348664542,-300.0,0.00038356,30]
[359787976,1746348664552,-300.0,0.00038356,30]
[359787977,1746348664562,-300.0,0.00038356,30]
[359787978,1746348664572,-234.10756755,0.00038356,30]
[359787979,1746348664582,-400.0,0.00038356,15]
[359787980,1746348664591,-400.0,0.00038356,15]
[359787981,1746348664601,-400.0,0.00038356,15]
[359787982,1746348664611,-400.0,0.00038356,15]
[359787983,1746348664621,-400.0,0.00038356,15]
[359787984,1746348664630,-400.0,0.00038356,15]
[359787985,1746348664640,-400.0,0.00038356,15]
[359787986,1746348664649,-400.0,0.00038356,15]
[359787987,1746348664658,-400.0,0.00038356,15]
[359787988,1746348664668,-400.0,0.00038356,15]
[359787989,1746348664678,-400.0,0.00038356,15]
[359787990,1746348664687,-400.0,0.00038356,15]
[359787991,1746348664697,-400.0,0.00038356,15]
[359787992,1746348664707,-362.83823762,0.00038356,15]
[359787993,1746348664717,-151.0,0.00038356,2]
[359787994,1746348664726,-200.0,0.00038356,5]
[359787995,1746348664736,-693.55,0.00038358,120]
[359787996,1746348664746,-200.0,0.00038362,120]
[359787997,1746348664756,-1041.27608546,0.00038365,120]
[359787998,1746348664766,-141732.59,0.000384,2]
[359787999,1746348664775,-281.870955,0.000384,14]
[359788000,1746348664785,-151.0,0.000384,14]
[359788001,1746348664794,-294.435758,0.000384,14]
[359788002,1746348664804,-294.435758,0.000384,14]
[359788003,1746348664814,-151.0,0.000384,2]
[359788004,1746348664824,-151.0,0.00038411,2]
[359788005,1746348664834,-200.0,0.00038415,120]
[359788006,1746348664844,-151.0,0.00038466,2]
[359788007,1746348664854,-1478.0,0.000385,30]
[359788008,1746348664863,-693.55,0.00038508,120]
[359788009,1746348664874,-151.0,0.00038521,2]
[359788010,1746348664884,-200.0,0.00038534,120]
[359788011,1746348664894,-151.0,0.00038576,2]
[359788012,1746348664903,-207.19938681,0.00038631,2]
[359788013,1746348664914,-693.55,0.00038658,120]
[359788014,1746348664925,-1564.37017226,0.0003866,15]
[359788015,1746348664934,-30028.02257336,0.000387,30]
[359788016,1746348664944,-10263.53,0.000387,30]
[359788017,1746348664953,-36278.52,0.000387,30]
[359788018,1746348664963,-200.0,0.00038727,120]
[359788019,1746348664974,-693.55,0.00038808,120]
[359788020,1746348664984,-15286.91,0.00038886,7]
[359788021,1746348664994,-165.45,0.000389,13]
[359788022,1746348665006,-2000.0,0.00038922,8]
[359788023,1746348665015,-998.038012,0.00038933,2]
[359788024,1746348665025,-693.55,0.00038958,120]
[359788025,1746348665035,-989.59873014,0.00039,120]
[359788026,1746348665046,-162.66182,0.00039,120]
[359788027,1746348665057,-1398.58335552,0.00039,120]
[359788028,1746348665067,-29754.0,0.00039,2]
[359788029,1746348665077,-403.3093305,0.00039,14]
[359788030,1746348665086,-151.0,0.00039,14]
[359788031,1746348665096,-294.435758,0.00039,14]
[359788032,1746348665106,-294.435758,0.00039,14]
[359788033,1746348665116,-151.0,0.00039,2]
[359788034,1746348665127,-1237.0,0.00039062,33]
[359788035,1746348665138,-1750.4338807,0.000391,30]
[359788036,1746348665147,-693.55,0.00039108,120]
[359788037,1746348665158,-4600.00714854,0.000392,68]
[359788038,1746348665168,-164.32632297,0.000392,30]
[359788039,1746348665178,-200.0,0.00039202,120]
[359788040,1746348665188,-179.3426672,0.00039237,120]
[359788041,1746348665198,-160.0,0.0003925,10]
[359788042,1746348665208,-276.42498352,0.0003925,5]
[359788043,1746348665217,-160.0,0.0003925,5]
[359788044,1746348665228,-5000.0,0.00039253,2]
[359788045,1746348665237,-693.55,0.00039258,120]
[359788046,1746348665247,-2000.0,0.00039281,8]
[359788047,1746348665258,-151.0,0.00039299,30]
[359788048,1746348665267,-155.0,0.00039299,30]
[359788049,1746348665340,-151.50998303,0.00039299,30]
[359788050,1746348665351,-151.84335757,0.00039299,30]
[359788051,1746348665362,-200.0,0.00039299,30]
[359788052,1746348665371,-1728.96,0.000393,7]
[359788053,1746348665381,-151.0,0.00039313,14]
[359788054,1746348665391,-151.0,0.00039313,14]
[359788055,1746348665400,-162.681347,0.00039313,14]
[359788056,1746348665411,-294.435758,0.00039313,14]
[359788057,1746348665420,-294.435758,0.00039313,14]
[359788058,1746348665429,-294.435758,0.00039313,14]
[359788059,1746348665439,-294.435758,0.00039313,14]
[359788060,1746348665449,-294.435758,0.00039313,14]
[359788061,1746348665458,-294.435758,0.00039313,14]
[359788062,1746348665467,-294.435758,0.00039313,14]
[359788063,1746348665477,-294.435749,0.00039313,14]
[359788064,1746348665487,-454.0030363,0.00039315,30]
[359788065,1746348665496,-4357696.39953069,0.00039339,20]
[359788066,1746348665668,-2825.43190541,0.00039339,20]
[359788067,1746348665761,-235.3108117,0.00035616,15]
[359788068,1746348665770,-24764.6891883,0.00039339,20]
[359788069,1746348665781,-4775.0,0.00039339,20]
[359788070,1746348665803,-0.47279303,0.00039339,20]
[359788071,1746348665815,-5733.56980257,0.00039339,20]
[359788072,1746348665827,-5239.93872349,0.00039339,20]
[359788073,1746348665884,155.0,0.00027397,3]
[359788159,1746349208046,-300.0,0.00025205,2]
[359788175,1746349548129,-65.14615141,0.00025205,2]
[359788176,1746349548150,-190.77778536,0.00027297,2]
[359788177,1746349548170,-160.0,0.00027396,2]
[359788178,1746349548190,-477.502942,0.00027397,2]
[359788179,1746349627091,-370.829368,0.00027397,2]
[359788180,1746349627112,-172.0,0.00027397,3]
[359788181,1746349627131,-247.38926287,0.00027397,5]
[359788182,1746349627152,-53.61248924,0.0002774,2]
[359788183,1746349630146,-106.38751076,0.0002774,2]
[359788184,1746349630171,-160.0,0.0002774,2]
[359788185,1746349630191,-799.51488361,0.00027764,2]
[359788186,1746349643179,-200.48511639,0.00027764,2]
[359788187,1746349643200,-187.614995,0.00027871,2]
[359788188,1746349643220,-884.0,0.00028669,2]
[359788189,1746349643240,-500.0,0.0002867,5]
[359788190,1746349643261,-362.0,0.00030281,2]
[359788191,1746349643282,-400.0,0.00030281,2]
[359788192,1746349643305,-301.0,0.00030282,2]
[359788193,1746349643325,-300.0,0.00030282,2]
[359788194,1746349643347,-198.74812785,0.00030282,2]
[359788195,1746349643376,-500.0,0.00030282,2]
[359788196,1746349643398,-419.49156681,0.00030282,2]
[359788197,1746349643424,-500.0,0.00030282,2]
[359788198,1746349643450,-500.0,0.00030282,2]
[359788199,1746349643478,-5.74403486,0.00030282,2]
[359788201,1746349774113,-410.05242048,0.00027397,5]
[359789289,1746349831842,-1000.0,0.00030111,2]
[359789290,1746349831851,-185.406425,0.00030211,120]
[359789291,1746349831861,-370.164,0.00030382,30]
[359789292,1746349831871,-370.95,0.00030514,30]
[359789293,1746349831880,-4291.23895625,0.000313,2]
[359789294,1746349831895,-43802.96104375,0.000313,2]
[359789295,1746349831904,-300.0,0.00031349,3]
[359789296,1746349831913,-400.0,0.00031349,2]
[359789297,1746349831923,-591.19039588,0.00031349,2]
[359789298,1746349831933,-504.29437068,0.0003135,5]
[359789299,1746349831943,-190.0,0.0003135,2]
[359789300,1746349831953,-36541.54832516,0.0003135,2]
[359789301,1746349831963,-500.0,0.0003152,5]
[359789302,1746349831973,-150.12122247,0.00031681,2]
[359789303,1746349831983,-163.36493255,0.00031699,2]
[359789304,1746349831992,-209.6233801,0.00031699,2]
[359789305,1746349832002,-11082.12102443,0.00031703,2]
[359789306,1746349832013,-1019.6261697,0.00031703,2]
[359789307,1746349832025,-14890.64006304,0.00031703,2]
[359789421,1746349838860,-1778.28447411,0.00031703,2]
[359789422,1746349838874,-12739.60187432,0.00031703,2]
[359789423,1746349838885,-2170.5434918,0.00031716,2]
[359789424,1746349838895,-4499.0494546,0.00031723,2]
[359789425,1746349838905,-500.0,0.00031781,2]
[359789426,1746349838915,-169.797362,0.00031883,2]
[359789427,1746349838925,-188.0,0.00032,120]
[359789428,1746349838936,-171.517547,0.0003235,7]
[359789429,1746349838948,-160.75198,0.0003235,7]
[359789430,1746349838959,-162.94943,0.0003235,7]
[359789431,1746349838971,-151.0,0.0003235,7]
[359789432,1746349838982,-151.0,0.0003235,7]
[359789433,1746349838993,-151.0,0.0003235,7]
[359789434,1746349839004,-151.0,0.0003235,7]
[359789435,1746349839014,-500.0,0.000324,5]
[359789436,1746349839024,-500.0,0.000324,5]
[359789437,1746349839034,-504.32137075,0.000324,5]
[359789438,1746349839044,-501.87114524,0.000324,5]
[359789439,1746349839055,-503.18325358,0.000324,5]
[359789440,1746349839066,-440.15719486,0.000324,5]
[359789441,1746349839076,-500.0,0.000324,5]
[359789442,1746349839087,-554.28080023,0.000324,5]
[359789443,1746349839098,-501.64979365,0.000324,5]
[359789444,1746349839108,-500.96514368,0.000324,5]
[359789445,1746349839119,-501.05018493,0.000324,5]
[359789446,1746349839129,-500.0,0.000324,5]
[359789447,1746349839141,-500.0,0.000324,5]
[359789448,1746349839151,-500.0,0.000324,5]
[359789449,1746349839162,-500.0,0.000324,5]
[359789450,1746349839173,-500.0,0.000324,5]
[359789451,1746349839184,-500.0,0.000324,5]
[359789452,1746349839196,-500.0,0.000324,5]
[359789453,1746349839206,-500.88988746,0.000324,3]
[359789454,1746349839217,-500.0,0.000324,5]
[359789455,1746349839228,-500.0,0.000324,5]
[359789456,1746349839238,-503.34380111,0.000324,2]
[359789457,1746349839249,-150.12122247,0.0003264,2]
[359789458,1746349839259,-41510.2736056,0.00032867,2]
[359789459,1746349839269,-1000.0,0.00032877,2]
[359789460,1746349839280,-471.75,0.0003289,3]
[359789461,1746349839291,-1344.75,0.000329,7]
[359789462,1746349839301,-314.49,0.00033155,3]
[359789463,1746349839318,-848.33231,0.00033165,2]
[359789464,1746349839328,-150.12122247,0.00033598,2]
[359789465,1746349839340,-560.0,0.0003374,2]
[359789466,1746349839355,-1500.0,0.00033973,2]
[359789467,1746349839366,-707.0,0.00033999,2]
[359789468,1746349839376,-1624.12,0.00033999,2]
[359789469,1746349839388,-403.0,0.00033999,2]
[359789470,1746349839399,-9874.67,0.00034,30]
[359789471,1746349839411,-25394.97,0.00034,30]
[359789472,1746349839422,-628.98,0.00034525,3]
[359789473,1746349839433,-150.12122247,0.00034557,2]
[359789474,1746349839444,-151.0,0.00035035,14]
[359789475,1746349839456,-151.0,0.00035035,14]
[359789476,1746349839467,-151.0,0.00035035,14]
[359789477,1746349839479,-151.0,0.00035035,14]
[359789478,1746349839490,-150.113,0.00035035,2]
[359789479,1746349839500,-2000.0,0.00035068,2]
[359789482,1746349839511,-150.207,0.00035236,2]
[359789484,1746349839521,-150.0,0.00035236,2]
[359789485,1746349839532,-500.0,0.00035462,5]
[359789486,1746349839544,-500.0,0.00035462,2]
[359789487,1746349839555,-150.12122247,0.00035515,2]
[359789488,1746349839566,-443.98149458,0.00035529,5]
[359789489,1746349839578,-643.55515777,0.0003555,2]
[359789490,1746349839589,-178.7134939,0.00035551,2]
[359789491,1746349839599,-157.24,0.0003558,3]
[359789492,1746349839610,-124530.820817,0.0003558,3]
[359789494,1746349839768,-83020.5472111,0.0003559,3]
[359789495,1746349839779,-200000.0,0.000356,10]
[359789496,1746349839789,-500.0,0.00035605,60]
[359789497,1746349839799,-500.0,0.00035615,2]
[359789499,1746349839808,-500.0,0.00035615,2]
[359789501,1746349839817,-647.06085817,0.00035615,2]
[359789503,1746349839827,-151.0,0.00035616,14]
[359789505,1746349839836,-151.0,0.00035616,14]
[359789507,1746349839845,-151.0,0.00035616,14]
[359789509,1746349839854,-151.0,0.00035616,14]
[359789511,1746349839863,-151.0,0.00035616,14]
[359789513,1746349839873,-156.582052,0.00035616,14]
[359789514,1746349839882,-400.32542812,0.00035616,15]
[359789515,1746349839891,-402.3846869,0.00035616,15]
[359789516,1746349839901,-151.0,0.00035616,14]
[359789517,1746349839911,-151.0,0.00035616,14]
[359789518,1746349839920,-151.0,0.00035616,14]
[359789519,1746349839929,-151.0,0.00035616,14]
[359789520,1746349839939,-151.0,0.00035616,14]
[359789521,1746349839948,-151.0,0.00035616,14]
[359789522,1746349839958,-154.683887,0.00035616,14]
[359789523,1746349839967,-151.0,0.00035616,14]
[359789525,1746349839977,-270.759119,0.00035616,14]
[359789526,1746349839986,-516.10785473,0.00035616,15]
[359789528,1746349839996,-401.27428184,0.00035616,14]
[359789530,1746349840006,-402.7756591,0.00035616,15]
[359789531,1746349840016,-404.76940827,0.00035616,15]
[359789532,1746349840026,-400.0,0.00035616,15]
[359789533,1746349840035,-412.35,0.00035616,15]
[359789534,1746349840044,-413.6528158,0.00035616,15]
[359789535,1746349840054,-401.02713402,0.00035616,15]
[359789536,1746349840064,-400.62615757,0.00035616,15]
[359789537,1746349840075,-400.0,0.00035616,15]
[359789538,1746349840085,-400.0,0.00035616,15]
[359789539,1746349840095,-409.74675526,0.00035616,15]
[359789540,1746349840106,-403.44570945,0.00035616,15]
[359789541,1746349840115,-400.0,0.00035616,15]
[359789542,1746349840126,-400.0,0.00035616,15]
[359789543,1746349840135,-400.8158301,0.00035616,15]
[359789544,1746349840144,-400.63968398,0.00035616,15]
[359789545,1746349840154,-400.0,0.00035616,15]
[359789546,1746349840166,-415.24649033,0.00035616,15]
[359789547,1746349840175,-401.27683683,0.00035616,15]
[359789548,1746349840184,-400.0,0.00035616,15]
[359789549,1746349840194,-501.41917155,0.00035616,15]
[359789550,1746349840204,-400.0,0.00035616,15]
[359789551,1746349840214,-413.86201221,0.00035616,15]
[359789552,1746349840223,-401.87611108,0.00035616,15]
[359789553,1746349840233,-400.0,0.00035616,15]
[359789555,1746349840243,-403.69702798,0.00035616,15]
[359789557,1746349840252,-500.19454477,0.00035616,15]
[359789558,1746349840262,-400.0,0.00035616,15]
[359789559,1746349840272,-400.0,0.00035616,15]
[359789560,1746349840281,-402.60407294,0.00035616,15]
[359789561,1746349840291,-400.0,0.00035616,15]
[359789562,1746349840300,-394.17,0.00035616,15]
[359789563,1746349840309,-400.0,0.00035616,15]
[359789564,1746349840319,-382.4,0.00035616,15]
[359789565,1746349840328,-401.14011879,0.00035616,15]
[359789566,1746349840338,-400.0,0.00035616,15]
[359789567,1746349840350,-402.84273088,0.00035616,15]
[359789568,1746349840360,-400.66704076,0.00035616,15]
[359789569,1746349840369,-400.0,0.00035616,15]
[359789570,1746349840383,-400.0,0.00035616,15]
[359789571,1746349840393,-362.17,0.00035616,15]
[359789572,1746349840403,-400.0,0.00035616,15]
[359789573,1746349840413,-407.08721691,0.00035616,15]
[359789574,1746349840422,-400.0,0.00035616,15]
[359789575,1746349840432,-400.0,0.00035616,15]
[359789576,1746349840442,-400.0,0.00035616,15]
[359789577,1746349840452,-400.0,0.00035616,15]
[359789578,1746349840462,-387.1,0.00035616,15]
[359789579,1746349840471,-400.0,0.00035616,15]
[359789580,1746349840481,-402.80854893,0.00035616,15]
[359789581,1746349840491,-404.92,0.00035616,15]
[359789582,1746349840500,-400.22514852,0.00035616,15]
[359789583,1746349840510,-400.58369159,0.00035616,15]
[359789584,1746349840520,-407.39882487,0.00035616,15]
[359789585,1746349840529,-400.0,0.00035616,15]
[359789586,1746349840538,-405.60806314,0.00035616,15]
[359789587,1746349840548,-400.0,0.00035616,15]
[359789588,1746349840557,-400.0,0.00035616,15]
[359789589,1746349840566,-192.98,0.00035616,15]
[359789590,1746349840576,-400.0,0.00035616,15]
[359789591,1746349840586,-410.34475167,0.00035616,15]
[359789592,1746349840596,-402.98922967,0.00035616,15]
[359789593,1746349840606,-525.82,0.00035616,15]
[359789594,1746349840615,-400.0,0.00035616,15]
[359789595,1746349840625,-400.0,0.00035616,15]
[359789596,1746349840635,-204.65743587,0.00035616,15]
[359789597,1746349840644,-325.81,0.00035616,15]
[359789598,1746349840654,-403.53590997,0.00035616,15]
[359789599,1746349840664,-408.60919766,0.00035616,15]
[359789600,1746349840674,-403.11136273,0.00035616,15]
[359789601,1746349840683,-400.0,0.00035616,2]
[359789602,1746349840692,-400.0,0.00035616,15]
[359789603,1746349840702,-400.0,0.00035616,2]
[359789604,1746349840711,-400.0,0.00035616,2]
[359789605,1746349840722,-400.0,0.00035616,15]
[359789606,1746349840732,-400.0,0.00035616,2]
[359789607,1746349840741,-400.0,0.00035616,2]
[359789608,1746349840750,-400.0,0.00035616,2]
[359789609,1746349840760,-400.0,0.00035616,2]
[359789610,1746349840770,-410.35644675,0.00035616,15]
[359789611,1746349840779,-400.0,0.00035616,2]
[359789612,1746349840788,-400.0,0.00035616,15]
[359789613,1746349840798,-400.0,0.00035616,2]
[359789614,1746349840808,-400.0,0.00035616,2]
[359789615,1746349840817,-400.0,0.00035616,2]
[359789616,1746349840827,-400.0,0.00035616,2]
[359789617,1746349840836,-347.8,0.00035616,2]
[359789618,1746349840846,-400.0,0.00035616,15]
[359789619,1746349840855,-400.0,0.00035616,15]
[359789620,1746349840865,-402.37447038,0.00035616,15]
[359789621,1746349840875,-402.06045532,0.00035616,15]
[359789622,1746349840884,-400.0,0.00035616,15]
[359789623,1746349840894,-411.75818439,0.00035616,15]
[359789624,1746349840903,-400.0,0.00035616,15]
[359789625,1746349840913,-400.0,0.00035616,15]
[359789626,1746349840923,-418.69803315,0.00035616,15]
[359789627,1746349840933,-405.28330273,0.00035616,15]
[359789628,1746349840942,-400.0,0.00035616,15]
[359789629,1746349840951,-400.0,0.00035616,15]
[359789630,1746349840962,-489.3,0.00035616,15]
[359789631,1746349840972,-400.0,0.00035616,15]
[359789632,1746349840981,-400.0,0.00035616,15]
[359789633,1746349840991,-405.29722593,0.00035616,15]
[359789634,1746349841000,-400.0,0.00035616,15]
[359789635,1746349841010,-400.0,0.00035616,15]
[359789636,1746349841019,-400.0,0.00035616,15]
[359789637,1746349841029,-400.0,0.00035616,15]
[359789638,1746349841038,-400.0,0.00035616,15]
[359789639,1746349841047,-400.0,0.00035616,15]
[359789640,1746349841056,-400.0,0.00035616,15]
[359789641,1746349841066,-400.0,0.00035616,15]
[359789642,1746349841075,-371.24,0.00035616,15]
[359789643,1746349841084,-200.94,0.00035616,15]
[359789644,1746349841094,-400.0,0.00035616,15]
[359789645,1746349841103,-403.98716134,0.00035616,15]
[359789646,1746349841112,-403.21993559,0.00035616,15]
[359789647,1746349841122,-400.0,0.00035616,15]
[359789648,1746349841132,-400.0,0.00035616,15]